bitfinex-derivatives/quotes_BTCF0:USTF0_20250318
["timestamp","ask_amount","ask_price","bid_price","bid_amount"]
[1742282876019,0.1424,83147.0,83146.0,0.81823834]
[1742282877006,4e-05,83151.0,83150.0,0.1202621]
[1742282877210,0.70046996,83192.0,83150.0,0.03]
[1742282877211,0.1403,83169.0,83150.0,0.03]
[1742282877411,0.1403,83169.0,83168.0,0.1202361]
[1742282878319,0.1403,83169.0,83168.0,0.4063361]
[1742282880516,0.12144,83185.0,83176.0,0.1202245]
[1742282880712,0.12144,83185.0,83176.0,0.4810245]
[1742282880713,0.139,83179.0,83176.0,0.4810245]
[1742282881221,0.1439,83178.0,83176.0,0.4810245]
[1742282881417,0.180341,83177.0,83176.0,0.4810245]
[1742282881822,0.313741,83177.0,83176.0,0.4810245]
[1742282882126,0.313741,83177.0,83176.0,0.3608]
[1742282882516,0.313741,83177.0,83176.0,0.4077726]
[1742282883425,0.313941,83177.0,83176.0,0.4077726]
[1742282885219,0.0002,83177.0,83176.0,0.5279971]
[1742282885421,0.3378065,83184.0,83182.0,0.1202144]
[1742282885620,0.2777,83184.0,83183.0,0.4810144]
[1742282886318,4e-05,83189.0,83183.0,0.3608]
[1742282886525,4e-05,83189.0,83188.0,0.1202072]
[1742282886829,4e-05,83189.0,83188.0,0.2416072]
[1742282887132,0.1201931,83198.0,83197.0,0.1201942]
[1742282887525,0.2767,83198.0,83197.0,0.1201942]
[1742282888522,0.1,83200.0,83199.0,0.1201913]
[1742282889031,0.1,83200.0,83199.0,0.1401913]
[1742282889834,0.1343,83208.0,83207.0,0.1201797]
[1742282890036,0.1343,83208.0,83207.0,0.4809797]
[1742282890332,0.2703,83208.0,83207.0,0.4809797]
[1742282891833,0.3904783,83208.0,83207.0,0.4809797]
[1742282892428,0.3904783,83208.0,83207.0,0.3608]
[1742282893429,0.3904783,83208.0,83207.0,0.4809797]
[1742282895028,0.2703,83208.0,83207.0,0.4809797]
[1742282895428,4e-05,83218.0,83211.0,0.0600867]
[1742282895624,0.2768,83217.0,83216.0,0.4809667]
[1742282896630,0.3969653,83217.0,83216.0,0.4809667]
[1742282899232,0.2768,83217.0,83216.0,0.52810995]
[1742282900037,0.133,83217.0,83216.0,0.52810995]
[1742282900234,0.133,83217.0,83216.0,0.55810995]
[1742282900435,0.133,83217.0,83216.0,0.52810995]
[1742282901442,4e-05,83237.0,83236.0,0.1201379]
[1742282901640,0.2876,83235.0,83234.0,0.1201401]
[1742282901840,0.2876,83235.0,83234.0,0.4809401]
[1742282903852,0.2876,83235.0,83234.0,0.5047]
[1742282904038,0.2876,83235.0,83228.0,0.0600742]
[1742282904039,0.3476703,83235.0,83229.0,0.1439]
[1742282904239,0.3476703,83235.0,83233.0,0.1201409]
[1742282904240,0.2590411,83234.0,83233.0,0.1201409]
[1742282904743,0.4183,83234.0,83233.0,0.1201409]
[1742282904937,0.5684408,83234.0,83233.0,0.1201409]
[1742282905542,0.4483,83234.0,83233.0,0.1201409]
[1742282905935,4e-05,83239.0,83238.0,0.120135]
[1742282906136,0.4208475,83266.0,83238.0,0.3808]
[1742282906352,0.1201071,83258.0,83255.0,0.420855]
[1742282906544,0.120109,83256.0,83255.0,0.420855]
[1742282907133,0.260209,83256.0,83255.0,0.420855]
[1742282907348,0.260209,83256.0,83255.0,0.40734277]
[1742282908342,0.120109,83256.0,83255.0,0.52745327]
[1742282908539,0.3202563,83260.0,83259.0,0.1201047]
[1742282908735,0.3433516,83260.0,83259.0,0.1201047]
[1742282909135,0.2833,83260.0,83259.0,0.1201047]
[1742282910643,0.2833,83260.0,83255.0,0.40734277]
[1742282910949,0.120109,83256.0,83255.0,0.52745287]
[1742282911444,0.120109,83256.0,83255.0,0.40734277]
[1742282911643,0.241309,83256.0,83255.0,0.3608]
[1742282911843,0.491309,83256.0,83255.0,0.3608]
[1742282912050,0.1201148,83252.0,83251.0,0.05979074]
[1742282912250,0.1201249,83245.0,83244.0,0.00018024]
[1742282912548,0.2413249,83245.0,83244.0,0.00018024]
[1742282912938,0.3413249,83245.0,83244.0,0.05831112]
[1742282913138,0.7480249,83245.0,83244.0,0.00018024]
[1742282913645,0.120148,83229.0,83228.0,0.21257982]
[1742282915447,0.360148,83229.0,83228.0,0.21257982]
[1742282915645,0.1201537,83225.0,83224.0,0.28343976]
[1742282915844,0.7109537,83225.0,83224.0,1e-08]
[1742282916336,0.1201754,83210.0,83202.0,0.28308057]
[1742282916541,0.1201855,83203.0,83202.0,0.28144057]
[1742282916741,0.2413855,83203.0,83202.0,0.28144057]
[1742282916941,0.5113855,83203.0,83202.0,0.33958536]
[1742282917143,0.2413855,83203.0,83202.0,0.33958536]
[1742282917348,0.5184855,83203.0,83202.0,0.33958536]
[1742282917652,0.7584855,83203.0,83202.0,0.33958536]
[1742282917848,0.7584855,83203.0,83202.0,0.28144057]
[1742282918044,0.1201913,83199.0,83198.0,0.00898113]
[1742282918245,0.1201942,83197.0,83196.0,0.3542997]
[1742282918860,0.3991942,83197.0,83196.0,0.3542997]
[1742282919242,0.3991942,83197.0,83196.0,0.41515831]
[1742282919447,0.1424,83197.0,83196.0,0.53535391]
[1742282919650,0.1364,83209.0,83201.0,0.1201884]
[1742282919651,0.2567875,83202.0,83201.0,0.1201884]
[1742282923250,0.1201884,83201.0,83200.0,0.1386]
[1742282923447,0.2591884,83201.0,83200.0,0.1386]
[1742282923646,0.1201942,83197.0,83196.0,0.06998218]
[1742282923858,0.1201971,83195.0,83194.0,0.00018024]
[1742282924053,0.3701971,83195.0,83194.0,0.00018024]
[1742282924256,0.1201971,83195.0,83194.0,0.00018024]
[1742282924449,0.3968971,83195.0,83194.0,0.00018024]
[1742282924644,0.3968971,83195.0,83194.0,0.05903536]
[1742282925249,0.3968971,83195.0,83194.0,0.00018024]
[1742282925649,0.3968971,83195.0,83194.0,0.05903536]
[1742282925850,0.3968971,83195.0,83194.0,0.06815212]
[1742282929359,0.6468971,83195.0,83194.0,0.06815212]
[1742282929555,0.5267,83195.0,83175.0,0.3608]
[1742282929758,0.1202144,83183.0,83181.0,0.2761]
[1742282929947,0.0601115,83177.0,83170.0,0.1202321]
[1742282930151,0.1202289,83173.0,83172.0,0.2631286]
[1742282930360,0.1202289,83173.0,83172.0,0.6239286]
[1742282930562,0.1202289,83173.0,83172.0,0.68287898]
[1742282931055,0.3502289,83173.0,83172.0,0.68287898]
[1742282932463,0.3502289,83173.0,83172.0,0.68487898]
[1742282933066,0.3502289,83173.0,83172.0,0.5737703]
[1742282933263,0.3502289,83173.0,83172.0,0.6920006]
[1742282936564,0.1202289,83173.0,83172.0,0.6920006]
[1742282939066,0.4002289,83173.0,83172.0,0.6920006]
[1742282939265,0.1202289,83173.0,83172.0,0.5717703]
[1742282939659,0.2633289,83173.0,83172.0,0.5717703]
[1742282940060,0.2633289,83173.0,83172.0,0.8323006]
[1742282940760,0.2414645,83176.0,83175.0,0.120226]
[1742282940961,0.5014645,83176.0,83175.0,0.120226]
[1742282941160,0.5014645,83176.0,83175.0,0.399126]
[1742282942266,0.12124,83176.0,83175.0,0.399126]
[1742282942566,0.4924645,83176.0,83175.0,0.399126]
[1742282942958,0.4824645,83176.0,83175.0,0.399126]
[1742282943365,0.2424645,83176.0,83175.0,0.399126]
[1742282943973,0.5024645,83176.0,83175.0,0.399126]
[1742282944469,0.6357645,83176.0,83175.0,0.399126]
[1742282944672,0.6357645,83176.0,83175.0,0.2789]
[1742282944967,0.3757645,83176.0,83175.0,0.2789]
[1742282945272,0.4757645,83176.0,83175.0,0.2789]
[1742282945862,0.6557645,83176.0,83175.0,0.2789]
[1742282948267,0.3757645,83176.0,83175.0,0.2789]
[1742282948472,0.001,83176.0,83175.0,0.399126]
[1742282948668,0.1212245,83176.0,83175.0,0.399126]
[1742282949879,0.4057245,83176.0,83175.0,0.399126]
[1742282950578,0.6757245,83176.0,83175.0,0.2789]
[1742282952276,0.6757245,83176.0,83175.0,0.399126]
[1742282952477,0.6757245,83176.0,83175.0,0.2789]
[1742282954570,0.6757245,83176.0,83172.0,0.4288703]
[1742282954571,0.1202404,83165.0,83152.0,0.3608]
[1742282954775,0.4914404,83165.0,83164.0,0.06103535]
[1742282955480,0.4914404,83165.0,83164.0,0.07024313]
[1742282955683,0.1202477,83160.0,83159.0,0.1428]
[1742282955882,0.3582477,83160.0,83159.0,0.20263679]
[1742282956078,0.3582477,83160.0,83159.0,0.05983679]
[1742282956275,0.1202506,83158.0,83157.0,0.1428]
[1742282956475,0.5214506,83158.0,83157.0,0.1428]
[1742282956878,0.8000506,83158.0,83157.0,0.15163431]
[1742282957386,0.7700506,83158.0,83157.0,0.3533421]
[1742282957581,0.5200506,83158.0,83157.0,0.3533421]
[1742282957782,0.7800506,83158.0,83157.0,0.4735941]
[1742282958083,0.0601522,83177.0,83163.0,0.1803567]
[1742282958384,0.0601522,83177.0,83164.0,0.2847]
[1742282958385,0.1202404,83165.0,83164.0,0.2847]
[1742282958586,0.3802404,83165.0,83164.0,0.4049404]
[1742282958785,0.5240404,83165.0,83164.0,0.2847]
[1742282959786,0.5240404,83165.0,83164.0,0.2857]
[1742282960283,0.5240404,83165.0,83164.0,0.001]
[1742282961285,0.6689404,83165.0,83164.0,0.001]
[1742282962479,0.1202506,83158.0,83157.0,0.05894779]
[1742282964590,0.5359578,83153.0,83152.0,0.42006947]
[1742282964795,0.5329578,83153.0,83152.0,0.05926947]
[1742282964987,0.8937578,83153.0,83152.0,0.05922947]
[1742282965187,0.1202621,83150.0,83149.0,0.00018035]
[1742282965389,0.5014621,83150.0,83149.0,0.00018035]
[1742282966291,0.5014621,83150.0,83149.0,0.27768035]
[1742282966685,0.2414621,83150.0,83149.0,0.27768035]
[1742282966882,0.5114621,83150.0,83149.0,0.27768035]
[1742282968087,0.3902621,83150.0,83149.0,0.27768035]
[1742282968297,0.3952621,83150.0,83149.0,0.27868035]
[1742282969586,0.3952621,83150.0,83149.0,0.28752971]
[1742282970892,0.005,83150.0,83149.0,0.40779331]
[1742282971082,0.005,83150.0,83149.0,0.76859331]
[1742282973992,0.1252621,83150.0,83149.0,0.76859331]
[1742282975486,0.005,83150.0,83149.0,0.76859331]
[1742282975692,0.1252621,83150.0,83149.0,0.76859331]
[1742282975889,0.005,83150.0,83149.0,0.76859331]
[1742282977001,0.1252621,83150.0,83149.0,0.76859331]
[1742282977303,0.005,83150.0,83149.0,0.76859331]
[1742282977606,0.1252621,83150.0,83149.0,0.76859331]
[1742282978597,0.005,83150.0,83149.0,0.76859331]
[1742282979698,0.1252621,83150.0,83149.0,0.76859331]
[1742282980603,0.3652621,83150.0,83149.0,0.76859331]
[1742282980806,0.1252621,83150.0,83149.0,0.76859331]
[1742282982003,0.005,83150.0,83149.0,0.76859331]
[1742282983395,0.1252621,83150.0,83149.0,0.76859331]
[1742282984295,0.2611621,83150.0,83149.0,0.76859331]
[1742282986806,0.1252621,83150.0,83149.0,0.76859331]
[1742282987899,0.005,83150.0,83149.0,0.76859331]
[1742282989011,0.14406023,83152.0,83151.0,0.1202607]
[1742282989309,0.00018035,83161.0,83157.0,0.120252]
[1742282989901,0.00018035,83161.0,83157.0,0.481052]
[1742282990092,0.00018035,83161.0,83160.0,0.1202477]
[1742282991207,0.21474802,83162.0,83161.0,0.1202462]
[1742282993897,0.1202448,83162.0,83161.0,0.1202462]
[1742282994796,0.2003212,83164.0,83163.0,0.1202433]
[1742282995297,0.2604419,83164.0,83163.0,0.1202433]
[1742282995499,0.1402,83164.0,83163.0,0.2658433]
[1742282995896,0.1442,83164.0,83163.0,0.2658433]
[1742282996306,0.2892,83164.0,83163.0,0.2658433]
[1742282996900,0.4094419,83164.0,83163.0,0.2658433]
[1742282998402,0.17999203,83176.0,83163.0,0.2658433]
[1742282998403,0.26632688,83176.0,83175.0,0.120226]
[1742282998601,0.1202361,83168.0,83167.0,0.3608]
[1742282998814,0.3602361,83168.0,83167.0,0.3608]
[1742282999810,0.6432361,83168.0,83167.0,0.3608]
[1742283000901,0.1202477,83160.0,83159.0,0.00018035]
[1742283001425,0.2302477,83160.0,83159.0,0.00018035]
[1742283001799,0.1202477,83160.0,83159.0,0.12042945]
[1742283002404,0.1202477,83160.0,83159.0,0.40272945]
[1742283003400,0.1202477,83160.0,83159.0,0.00018035]
[1742283003609,0.1202477,83160.0,83159.0,0.12042945]
[1742283004912,0.1212477,83160.0,83159.0,0.12042945]
[1742283006407,0.1212477,83160.0,83159.0,0.39282945]
[1742283007310,0.0601162,83171.0,83168.0,0.1202347]
[1742283007503,0.2524355,83169.0,83168.0,0.1202347]
[1742283007911,0.6132355,83169.0,83168.0,0.1202347]
[1742283008609,0.1202477,83160.0,83159.0,0.00018035]
[1742283008810,0.1202491,83159.0,83158.0,4e-05]
[1742283009108,0.1202578,83153.0,83152.0,0.1202592]
[1742283010008,0.3910578,83153.0,83152.0,0.1202592]
[1742283010715,0.1333,83153.0,83152.0,0.1202592]
[1742283010915,0.1333,83153.0,83152.0,0.2533592]
[1742283011307,0.2708,83153.0,83152.0,0.2533592]
[1742283012716,0.0601234,83161.0,83152.0,0.1331]
[1742283012913,0.1202423,83164.0,83159.0,0.1202491]
[1742283013110,0.21474802,83166.0,83159.0,0.1202491]
[1742283013821,0.1202453,83162.0,83159.0,0.1202491]
[1742283014218,0.1202412,83165.0,83159.0,0.1202491]
[1742283014520,0.2773,83164.0,83159.0,0.1202491]
[1742283014716,0.3975429,83164.0,83159.0,0.1202491]
[1742283015721,0.4810477,83160.0,83159.0,0.1202491]
[1742283015924,0.3608,83160.0,83159.0,0.1202491]
[1742283018313,0.3975419,83164.0,83163.0,0.1202433]
[1742283019120,0.1803751,83160.0,83159.0,0.1202491]
[1742283019424,0.1803751,83160.0,83159.0,0.1204891]
[1742283019625,0.1202452,83162.0,83161.0,0.1202448]
[1742283019825,0.2758,83162.0,83161.0,0.1202448]
[1742283020014,0.1369,83162.0,83161.0,0.1202448]
[1742283021121,0.3608,83169.0,83168.0,0.1202361]
[1742283021322,0.120239,83167.0,83166.0,0.1202379]
[1742283021916,0.0601231,83162.0,83159.0,0.00024]
[1742283022121,0.4810477,83160.0,83159.0,0.00024]
[1742283022318,0.7510477,83160.0,83159.0,0.00024]
[1742283022523,1.0237477,83160.0,83159.0,0.00024]
[1742283023234,0.1202549,83155.0,83154.0,0.263055]
[1742283023434,0.0601288,83154.0,83153.0,4e-05]
[1742283023621,0.7183851,83154.0,83153.0,0.1202978]
[1742283024632,0.7173851,83154.0,83153.0,0.1202978]
[1742283024933,0.7173851,83154.0,83153.0,0.2630978]
[1742283025326,0.7223851,83154.0,83153.0,0.2640978]
[1742283026231,0.7023851,83154.0,83153.0,0.2640978]
[1742283026433,0.7523851,83154.0,83153.0,0.2640978]
[1742283027933,0.5623851,83154.0,83153.0,0.1438]
[1742283028230,0.1202694,83145.0,83130.0,0.0601449]
[1742283028423,0.7710694,83145.0,83136.0,0.1202822]
[1742283028625,0.7710694,83145.0,83137.0,0.2861]
[1742283028826,0.7710694,83145.0,83144.0,0.06025639]
[1742283029126,0.7710694,83145.0,83144.0,0.00042035]
[1742283029818,0.7310694,83145.0,83144.0,0.00042035]
[1742283030633,0.7360694,83145.0,83144.0,0.00042035]
[1742283031836,0.1202882,83132.0,83131.0,0.132]
[1742283032035,0.3802882,83132.0,83131.0,0.132]
[1742283032233,0.3802882,83132.0,83131.0,0.19161347]
[1742283032438,0.120294,83129.0,83128.0,0.180436]
[1742283032829,0.252394,83129.0,83128.0,0.180436]
[1742283033034,0.522394,83129.0,83128.0,0.180436]
[1742283033233,0.664894,83129.0,83128.0,0.14273029]
[1742283033440,1.025694,83129.0,83128.0,0.06768956]
[1742283033741,0.120294,83128.0,83127.0,0.11804817]
[1742283033940,0.360294,83128.0,83127.0,4e-05]
[1742283034131,0.1202997,83124.0,83123.0,0.1203006]
[1742283034330,0.1203026,83122.0,83121.0,0.1203028]
[1742283034546,0.7211026,83122.0,83121.0,0.1203028]
[1742283034931,0.8532026,83122.0,83121.0,0.1203028]
[1742283035540,0.9887026,83122.0,83121.0,0.3231149]
[1742283036134,0.9877026,83122.0,83121.0,0.2028121]
[1742283037143,0.9877026,83122.0,83121.0,0.3271162]
[1742283037338,0.9877026,83122.0,83121.0,0.4715162]
[1742283038038,0.1321,83122.0,83121.0,0.48052922]
[1742283038245,0.3608,83129.0,83128.0,0.120294]
[1742283038632,0.1202918,83130.0,83129.0,0.1202925]
[1742283038830,0.1202918,83130.0,83129.0,0.4082925]
[1742283040241,0.0601443,83132.0,83131.0,0.1202896]
[1742283040436,0.2041443,83132.0,83131.0,0.1202896]
[1742283041443,0.2061443,83132.0,83131.0,0.1202896]
[1742283042137,0.1202911,83130.0,83129.0,0.1457]
[1742283042342,0.1203026,83122.0,83121.0,0.07042512]
[1742283042546,0.1203026,83122.0,83121.0,0.1203041]
[1742283042741,0.1203026,83122.0,83121.0,0.12950941]
[1742283042935,0.1203026,83122.0,83121.0,0.3318676]
[1742283043133,0.2573026,83122.0,83121.0,0.3318676]
[1742283043643,0.137,83122.0,83121.0,0.4715676]
[1742283043846,0.1385,83129.0,83123.0,0.0601499]
[1742283044049,0.2572971,83129.0,83128.0,0.120294]
[1742283044851,0.2572971,83129.0,83128.0,0.393994]
[1742283045950,0.137,83129.0,83128.0,0.393994]
[1742283046252,0.3608,83130.0,83129.0,0.1202925]
[1742283046547,0.3608,83130.0,83129.0,0.3961925]
[1742283047449,0.4810911,83130.0,83129.0,0.3961925]
[1742283047643,0.4977,83130.0,83129.0,0.3961925]
[1742283047838,0.6179911,83130.0,83129.0,0.3961925]
[1742283048447,0.6179911,83130.0,83129.0,0.2759]
[1742283048643,0.6179911,83130.0,83129.0,0.3961925]
[1742283050143,0.8779911,83130.0,83129.0,0.1409]
[1742283050344,0.6179911,83130.0,83129.0,0.1409]
[1742283052943,0.1202925,83129.0,83128.0,4e-05]
[1742283053148,0.3451925,83129.0,83128.0,4e-05]
[1742283053453,0.4792925,83129.0,83128.0,4e-05]
[1742283054053,0.1202997,83124.0,83123.0,0.1457]
[1742283054252,0.1192997,83124.0,83123.0,0.1457]
[1742283054945,0.3920997,83124.0,83123.0,0.1457]
[1742283055558,0.1203026,83122.0,83121.0,0.0690635]
[1742283055753,0.1203041,83121.0,83120.0,0.14248035]
[1742283055945,0.3931041,83121.0,83120.0,0.14248035]
[1742283056147,0.3911041,83121.0,83120.0,0.14248035]
[1742283057054,0.3911041,83121.0,83120.0,0.41388585]
[1742283057359,0.3911041,83121.0,83120.0,0.35545458]
[1742283057859,0.3911041,83121.0,83120.0,0.3643808]
[1742283058052,0.3911041,83121.0,83120.0,0.2162808]
[1742283058254,0.3911041,83121.0,83120.0,0.0739808]
[1742283059748,0.4911041,83121.0,83120.0,0.0739808]
[1742283060750,0.1203142,83114.0,83113.0,0.1475]
[1742283061054,0.1203171,83112.0,83107.0,0.1344]
[1742283061252,0.3903171,83112.0,83103.0,0.1203299]
[1742283061471,0.3903171,83112.0,83105.0,0.1203271]
[1742283061472,0.1203171,83112.0,83105.0,0.1203271]
[1742283061654,0.1203171,83112.0,83111.0,0.4811186]
[1742283061655,0.6846171,83112.0,83111.0,0.4811186]
[1742283061856,0.4046171,83112.0,83111.0,0.3608]
[1742283062048,0.4016171,83112.0,83111.0,0.3608]
[1742283062563,0.3966171,83112.0,83111.0,0.6273186]
[1742283063461,0.3966171,83112.0,83111.0,0.6323186]
[1742283063866,0.3608,83123.0,83120.0,0.1203055]
[1742283065062,0.3608,83123.0,83120.0,0.1223055]
[1742283065566,0.30000915,83121.0,83120.0,0.1223055]
[1742283066355,0.43430915,83121.0,83120.0,0.1223055]
[1742283067754,0.17970505,83121.0,83120.0,0.1223055]
[1742283067960,0.1631733,83121.0,83120.0,0.1223055]
[1742283068466,0.26436834,83129.0,83128.0,0.120294]
[1742283068858,0.14407574,83129.0,83128.0,0.120294]
[1742283069061,0.26436824,83129.0,83128.0,0.120294]
[1742283069263,0.26436824,83129.0,83128.0,0.394494]
[1742283069567,0.14407574,83129.0,83128.0,0.394494]
[1742283069759,0.26436824,83129.0,83128.0,0.394494]
[1742283070771,0.26636824,83129.0,83128.0,0.394494]
[1742283071155,0.14607574,83129.0,83128.0,0.394494]
[1742283071569,0.26636824,83129.0,83128.0,0.394494]
[1742283071770,0.1222925,83129.0,83128.0,0.394494]
[1742283071972,0.002,83129.0,83128.0,0.394494]
[1742283072872,0.1222925,83129.0,83128.0,0.394494]
[1742283073073,0.12098232,83134.0,83133.0,0.1202867]
[1742283073871,0.12098232,83134.0,83133.0,0.3958867]
[1742283074572,0.12398232,83134.0,83133.0,0.3958867]
[1742283074767,0.12498232,83134.0,83133.0,0.3958867]
[1742283075671,0.004,83134.0,83133.0,0.3958867]
[1742283075867,0.004,83134.0,83133.0,0.7566867]
[1742283076679,4e-05,83147.0,83146.0,0.1202679]
[1742283076971,0.13984,83147.0,83146.0,0.1202679]
[1742283077171,0.21474802,83151.0,83147.0,0.060133]
[1742283077379,0.21474802,83151.0,83150.0,0.1202621]
[1742283077561,0.21474802,83151.0,83150.0,0.21038478]
[1742283077562,0.17262845,83151.0,83150.0,0.21038478]
[1742283077768,4e-05,83159.0,83158.0,0.1202506]
[1742283077968,0.00022047,83159.0,83158.0,0.1202506]
[1742283078580,0.00022047,83159.0,83158.0,0.3997506]
[1742283078782,0.00022047,83159.0,83158.0,0.40867167]
[1742283078984,0.00522047,83159.0,83158.0,0.40867167]
[1742283080374,4e-05,83166.0,83165.0,0.1202404]
[1742283080678,4e-05,83166.0,83165.0,0.1302404]
[1742283080876,8e-05,83168.0,83165.0,0.1302404]
[1742283080877,8e-05,83168.0,83167.0,0.1202375]
[1742283081182,0.1418,83170.0,83169.0,0.1202347]
[1742283081387,0.1441,83185.0,83176.0,0.1202245]
[1742283081388,4e-05,83177.0,83176.0,0.1202245]
[1742283082076,0.00018036,83178.0,83177.0,0.1202231]
[1742283082476,0.00018036,83178.0,83177.0,0.2557231]
[1742283084083,0.12040196,83178.0,83171.0,0.3608]
[1742283084378,0.1202303,83172.0,83171.0,0.3608]
[1742283084574,0.1202448,83162.0,83150.0,0.06084551]
[1742283084882,0.4810448,83162.0,83153.0,0.1202571]
[1742283085085,0.4810448,83162.0,83154.0,0.1202556]
[1742283085284,0.5810448,83162.0,83154.0,0.1202556]
[1742283085581,0.5810448,83162.0,83151.0,0.143]
[1742283085582,0.8577448,83162.0,83151.0,0.143]
[1742283085777,0.8567448,83162.0,83154.0,0.1202563]
[1742283085973,0.8567448,83162.0,83152.0,0.1202584]
[1742283086175,0.8567448,83162.0,83151.0,0.143]
[1742283086371,0.8567448,83162.0,83152.0,0.1202588]
[1742283086568,0.8567448,83162.0,83151.0,0.26326]
[1742283086768,0.8567448,83162.0,83151.0,0.143]
[1742283086981,0.0601263,83157.0,83145.0,0.21161041]
[1742283087278,0.1202679,83146.0,83145.0,0.21161041]
[1742283087477,0.2302679,83146.0,83145.0,0.21161041]
[1742283088089,0.5075679,83146.0,83145.0,0.21161041]
[1742283088378,0.5125679,83146.0,83145.0,0.21161041]
[1742283088582,0.5125679,83146.0,83141.0,0.06088967]
[1742283088583,0.1202737,83142.0,83141.0,0.06088967]
[1742283088782,0.1202795,83138.0,83137.0,0.00018036]
[1742283088973,0.0601389,83140.0,83132.0,4e-05]
[1742283089175,0.1804282,83136.0,83135.0,0.1202824]
[1742283089381,0.0601418,83136.0,83135.0,0.1202824]
[1742283089585,0.3362418,83136.0,83135.0,0.1202824]
[1742283090782,0.3362418,83136.0,83135.0,0.17896457]
[1742283090983,0.2761,83136.0,83135.0,0.17896457]
[1742283091500,0.2791,83136.0,83135.0,0.17896457]
[1742283091988,0.2811,83136.0,83135.0,0.17896457]
[1742283092981,0.2811,83136.0,83135.0,0.31436457]
[1742283095277,0.4013824,83136.0,83135.0,0.17896457]
[1742283096681,0.2811,83136.0,83135.0,0.17896457]
[1742283096886,0.4013824,83136.0,83135.0,0.31966457]
[1742283097980,0.2811,83136.0,83135.0,0.31966457]
[1742283099088,0.2811,83136.0,83135.0,0.17896457]
[1742283099386,0.6613824,83136.0,83135.0,0.05868217]
[1742283099583,0.1202867,83133.0,83132.0,0.00913555]
[1742283099882,0.1202867,83133.0,83132.0,0.12942365]
[1742283100788,0.1212867,83133.0,83132.0,0.19038201]
[1742283101091,0.1232867,83133.0,83132.0,0.19038201]
[1742283102791,0.1232867,83133.0,83132.0,0.32858201]
[1742283103294,0.1232867,83133.0,83132.0,0.19038201]
[1742283106891,0.3732867,83133.0,83132.0,0.19038201]
[1742283107085,0.1232867,83133.0,83132.0,0.19038201]
[1742283108188,0.1232867,83133.0,83132.0,0.07009391]
[1742283108491,0.3632867,83133.0,83132.0,0.19038211]
[1742283108685,0.1232867,83133.0,83132.0,0.19038211]
[1742283108884,0.1232867,83133.0,83132.0,0.33168211]
[1742283113487,0.003,83133.0,83132.0,0.69248211]
[1742283113687,0.06034876,83154.0,83142.0,0.1202737]
[1742283114007,0.1202668,83147.0,83142.0,0.4810737]
[1742283114203,0.3146965,83149.0,83142.0,0.9133737]
[1742283114390,0.00022036,83154.0,83148.0,0.120265]
[1742283114589,0.00022036,83154.0,83149.0,0.3941636]
[1742283115096,0.00022036,83154.0,83153.0,0.1202578]
[1742283115097,0.00018036,83154.0,83153.0,0.1202578]
[1742283117000,0.14028036,83154.0,83153.0,0.1202578]
[1742283118293,0.26453666,83154.0,83153.0,0.1202578]
[1742283118500,0.14428036,83154.0,83153.0,0.1202578]
[1742283118685,0.00418036,83154.0,83153.0,0.1202578]
[1742283120503,0.12443666,83154.0,83153.0,0.1202578]
[1742283120891,0.00418036,83154.0,83153.0,0.1202578]
[1742283121087,4e-05,83158.0,83157.0,0.120252]
[1742283121291,4e-05,83158.0,83157.0,0.481052]
[1742283121490,4e-05,83158.0,83157.0,0.767452]
[1742283121895,0.1372,83162.0,83157.0,0.767452]
[1742283121896,0.1372,83162.0,83161.0,0.1202462]
[1742283122104,0.1372,83169.0,83168.0,0.1202361]
[1742283122805,0.1372,83169.0,83168.0,0.4080361]
[1742283123390,0.1372,83169.0,83168.0,0.4280361]
[1742283124202,0.1372,83169.0,83168.0,0.4080361]
[1742283124401,0.1372,83169.0,83168.0,0.4280361]
[1742283124705,0.1402,83169.0,83168.0,0.48887082]
[1742283124907,0.003,83169.0,83168.0,0.48887082]
[1742283125503,0.28649901,83192.0,83180.0,0.060109]
[1742283125698,0.147,83183.0,83182.0,0.1803238]
[1742283125904,0.147,83183.0,83182.0,0.4524238]
[1742283126401,0.2923,83183.0,83182.0,0.4524238]
[1742283126703,0.4125144,83183.0,83182.0,0.4524238]
[1742283126909,0.2923,83183.0,83182.0,0.4524238]
[1742283127316,0.4125144,83183.0,83182.0,0.3322079]
[1742283127605,0.4125144,83183.0,83182.0,0.34126093]
[1742283127804,0.2923,83183.0,83182.0,0.34126093]
[1742283128003,0.4155144,83183.0,83182.0,0.34126093]
[1742283128907,0.5255144,83183.0,83182.0,0.00905303]
[1742283129103,0.5255144,83183.0,83175.0,0.1202247]
[1742283129298,0.180336,83178.0,83177.0,0.1202229]
[1742283129501,0.180336,83178.0,83177.0,0.12919293]
[1742283129699,0.735136,83178.0,83177.0,0.12919293]
[1742283129900,0.735136,83178.0,83177.0,0.00897003]
[1742283130100,0.1803426,83175.0,83174.0,0.1202273]
[1742283130309,0.1202318,83171.0,83170.0,0.2578319]
[1742283130510,0.1202347,83169.0,83168.0,0.06083472]
[1742283130808,0.1202404,83165.0,83164.0,0.1202415]
[1742283131005,0.1803684,83164.0,83163.0,0.1202422]
[1742283131202,0.3232684,83164.0,83160.0,0.06168267]
[1742283131407,0.3362223,83163.0,83162.0,0.1202444]
[1742283131908,0.1202462,83161.0,83160.0,0.06168267]
[1742283132115,0.4002462,83161.0,83160.0,0.06168267]
[1742283133410,0.4002462,83161.0,83160.0,0.07073285]
[1742283134507,0.4022462,83161.0,83160.0,0.07073285]
[1742283135412,0.4022462,83161.0,83152.0,4e-05]
[1742283135413,0.1202534,83156.0,83152.0,4e-05]
[1742283135609,0.4810578,83153.0,83152.0,4e-05]
[1742283136011,0.1202665,83147.0,83146.0,0.1471]
[1742283136528,0.1202766,83140.0,83139.0,0.3608]
[1742283136719,0.1202766,83140.0,83137.0,0.2673797]
[1742283136720,0.1202795,83138.0,83137.0,0.2673797]
[1742283137010,0.1202795,83138.0,83137.0,0.20754288]
[1742283137418,0.3951795,83138.0,83137.0,0.20754288]
[1742283137720,0.3941795,83138.0,83137.0,0.06044288]
[1742283137916,0.1202867,83133.0,83132.0,0.1464]
[1742283138212,0.1202867,83133.0,83132.0,0.14644]
[1742283138604,0.1202867,83133.0,83132.0,0.20724974]
[1742283138818,0.4061867,83133.0,83132.0,0.20740974]
[1742283139220,0.4051867,83133.0,83132.0,0.06100974]
[1742283139819,0.6651867,83133.0,83132.0,0.06100974]
[1742283140014,0.6651867,83133.0,83132.0,0.06096974]
[1742283140320,0.6651867,83133.0,83132.0,0.00016]
[1742283140514,0.6651867,83133.0,83124.0,0.21161041]
[1742283140515,0.0601483,83127.0,83124.0,0.21161041]
[1742283140815,0.0601483,83127.0,83104.0,0.3608]
[1742283140816,0.058158,83113.0,83106.0,0.21161041]
[1742283141023,0.1203244,83107.0,83106.0,0.21161041]